[Event "WJCC U20 Open 2019"]
[Site "New Delhi"]
[Date "2019.10.15"]
[Round "1.25"]
[White "Costachi, Mihnea"]
[Black "Wagh, Suyog"]
[Result "1/2-1/2"]
[ECO "D37"]
[WhiteElo "2463"]
[BlackElo "2229"]
[Annotator "ChessBase"]
[PlyCount "60"]
[EventDate "2019.10.15"]
[EventType "swiss"]
[EventCountry "IND"]
[SourceTitle "playchess.com"]
[Source "ChessBase"]
[SourceQuality "1"]
[TimeControl "40/5400+30:1800+30"]

1. d4 {[%emt 0:00:00]} Nf6 {[%emt 0:00:00]} 2. c4 {[%emt 0:00:06]} e6 {[%emt 0:00:00]} 3. Nf3 {[%emt 0:00:53]} d5 {[%emt 0:00:00]} 4. Nc3 {[%emt 0:00:25]} dxc4 {[%emt 0:00:00]} 5. e3 {[%emt 0:01:12]} a6 {[%emt 0:00:20]} 6. Bxc4 {[%emt 0:00:27]} b5 {[%emt 0:00:25]} 7. Bb3 {[%emt 0:00:29]} Bb7 {[%emt 0:00:18]} 8. O-O {[%emt 0:00:17]} c5 {[%emt 0:04:56]} 9. e4 {[%emt 0:02:03]} Be7 {[%emt 0:42:43]} 10. e5 {[%emt 0:04:47]} Ne4 {[%emt 0:03:38]} 11. Nxe4 {[%emt 0:07:51]} Bxe4 {[%emt 0:00:02]} 12. Qe2 {[%emt 0:00:54]} Bb7 {[%emt 0:03:53]} 13. dxc5 {[%emt 0:01:38]} Nd7 {[%emt 0:02:34]} 14. Be3 {[%emt 0:22:45]} Nxc5 {[%emt 0:08:27]} 15. Rfd1 {[%emt 0:01:00]} Qb8 {[%emt 0:00:34]} 16. Bxc5 {[%emt 0:11:42]} Bxc5 {[%emt 0:00:12]} 17. Ng5 {[%emt 0:00:07]} Be7 {[%emt 0:05:29]} 18. h4 {[%emt 0:02:45]} O-O {[%emt 0:03:10]} 19. Nxh7 {[%emt 0:07:30]} Kxh7 {[%emt 0:05:05]} 20. Qh5+ {[%emt 0:00:22]} Kg8 {[%emt 0:00:04]} 21. Bc2 {[%emt 0:14:12]} f5 {[%emt 0:00:09]} 22. exf6 {[%emt 0:00:41]} Rxf6 {[%emt 0:00:05]} 23. Qh7+ {[%emt 0:09:25]} Kf8 {[%emt 0:03:37]} 24. Qh8+ {[%emt 0:00:38]} Kf7 {[%emt 0:00:05]} 25. Qh5+ {[%emt 0:00:11]} Kf8 {[%emt 0:01:03]} 26. Qh8+ {[%emt 0:01:39]} Kf7 {[%emt 0:00:01]} 27. Qh5+ {[%emt 0:00:20]} Kf8 {[%emt 0:00:01]} 28. Qh8+ {[%emt 0:00:31]} Kf7 {[%emt 0:00:05]} 29. Qh5+ {[%emt 0:00:07]} Kf8 {[%emt 0:00:07]} 30. Qh8+ {[%emt 0:00:41]} Kf7 {[%emt 0:00:14]} 1/2-1/2

[Event "WJCC U20 Open 2019"]
[Site "New Delhi"]
[Date "2019.10.15"]
[Round "1.27"]
[White "Rahul, Srivatshav P"]
[Black "Donoso Diaz, Sebastian"]
[Result "1-0"]
[ECO "A04"]
[WhiteElo "2460"]
[BlackElo "2203"]
[Annotator "ChessBase"]
[PlyCount "59"]
[EventDate "2019.10.15"]
[EventType "swiss"]
[EventCountry "IND"]
[SourceTitle "playchess.com"]
[Source "ChessBase"]
[SourceQuality "1"]
[TimeControl "40/5400+30:1800+30"]

1. Nf3 {[%emt 0:00:00]} c5 {[%emt 0:00:00]} 2. g3 {[%emt 0:01:01]} Nc6 {[%emt 0:00:19]} 3. Bg2 {[%emt 0:00:13]} g6 {[%emt 0:01:52]} 4. O-O {[%emt 0:00:45]} Bg7 {[%emt 0:00:30]} 5. e4 {[%emt 0:00:12]} e5 {[%emt 0:00:29]} 6. c3 {[%emt 0:00:16]} Nge7 {[%emt 0:01:00]} 7. d3 {[%emt 0:02:54]} d5 {[%emt 0:03:09]} 8. exd5 {[%emt 0:02:35]} Nxd5 {[%emt 0:00:29]} 9. Nbd2 {[%emt 0:01:10]} O-O {[%emt 0:03:54]} 10. Re1 {[%emt 0:02:14]} b6 {[%emt 0:08:44]} 11. Nc4 {[%emt 0:03:50]} Re8 {[%emt 0:03:43]} 12. Ng5 {[%emt 0:02:12]} f6 {[%emt 0:29:06]} 13. Qb3 {[%emt 0:11:24]} Nce7 {[%emt 0:20:19]} 14. Ne4 {[%emt 0:00:42]} Be6 {[%emt 0:02:14]} 15. f4 {[%emt 0:01:43]} h6 {[%emt 0:09:00]} 16. a4 {[%emt 0:12:30]} Nf5 {[%emt 0:02:33]} 17. fxe5 {[%emt 0:01:30]} fxe5 {[%emt 0:00:18]} 18. a5 {[%emt 0:02:52]} Rb8 {[%emt 0:00:41]} 19. axb6 {[%emt 0:04:01]} Nxb6 {[%emt 0:02:24]} 20. Nxc5 {[%emt 0:00:36]} Nxc4 {[%emt 0:01:19]} 21. Nxe6 {[%emt 0:01:14]} Qxd3 {[%emt 0:00:07]} 22. Nc5 {[%emt 0:02:49]} Rxb3 {[%emt 0:02:25]} 23. Nxd3 {[%emt 0:00:26]} Kh8 {[%emt 0:02:32]} 24. Bd5 {[%emt 0:01:38]} Nfd6 {[%emt 0:00:43]} 25. Rxa7 {[%emt 0:00:51]} e4 {[%emt 0:02:08]} 26. Nf4 {[%emt 0:00:05]} g5 {[%emt 0:01:35]} 27. Nh5 {[%emt 0:00:13]} Bf8 {[%emt 0:00:53]} 28. Nf6 {[%emt 0:01:48]} Re7 {[%emt 0:00:02]} 29. Rxe7 {[%emt 0:00:27]} Bxe7 {[%emt 0:00:03]} 30. Nxe4 {[%emt 0:00:06]} 1-0

[Event "WJCC U20 Open 2019"]
[Site "New Delhi"]
[Date "2019.10.15"]
[Round "1.28"]
[White "Milikow, Yoav"]
[Black "Muradli, Mahammad"]
[Result "1-0"]
[ECO "D31"]
[WhiteElo "2199"]
[BlackElo "2459"]
[Annotator "ChessBase"]
[PlyCount "95"]
[EventDate "2019.10.15"]
[EventType "swiss"]
[EventCountry "IND"]
[SourceTitle "playchess.com"]
[Source "ChessBase"]
[SourceQuality "1"]
[TimeControl "40/5400+30:1800+30"]

1. d4 {[%emt 0:00:00]} d5 {[%emt 0:00:00]} 2. c4 {[%emt 0:00:00]} e6 {[%emt 0:00:00]} 3. Nc3 {[%emt 0:00:00]} Be7 {[%emt 0:00:00]} 4. cxd5 {[%emt 0:00:28]} exd5 {[%emt 0:00:00]} 5. Bf4 {[%emt 0:00:08]} c6 {[%emt 0:00:00]} 6. e3 {[%emt 0:00:16]} Bf5 {[%emt 0:00:11]} 7. g4 {[%emt 0:00:08]} Be6 {[%emt 0:00:03]} 8. h3 {[%emt 0:00:17]} Nd7 {[%emt 0:03:29]} 9. Bd3 {[%emt 0:01:02]} h5 {[%emt 0:00:43]} 10. gxh5 {[%emt 0:00:36]} Ndf6 {[%emt 0:00:13]} 11. Qc2 {[%emt 0:01:41]} Rxh5 {[%emt 0:09:37]} 12. O-O-O {[%emt 0:05:54]} Bd6 {[%emt 0:07:40]} 13. Nce2 {[%emt 0:15:22]} Bg4 {[%emt 0:17:44]} 14. Re1 {[%emt 0:11:05]} Qa5 {[%emt 0:08:26]} 15. Rf1 {[%emt 0:08:23]} Bxe2 {[%emt 0:08:54]} 16. Nxe2 {[%emt 0:02:08]} O-O-O {[%emt 0:01:01]} 17. Bxd6 {[%emt 0:02:21]} Rxd6 {[%emt 0:00:19]} 18. Kb1 {[%emt 0:02:36]} Rh4 {[%emt 0:03:43]} 19. f3 {[%emt 0:02:26]} Nh5 {[%emt 0:21:07]} 20. Bf5+ {[%emt 0:05:32]} Kb8 {[%emt 0:01:53]} 21. e4 {[%emt 0:02:55]} Nf4 {[%emt 0:05:57]} 22. Nxf4 {[%emt 0:07:34]} Rxf4 {[%emt 0:00:03]} 23. Qh2 {[%emt 0:01:08]} g5 24. h4 {[%emt 0:01:13]} dxe4 {[%emt 0:04:54]} 25. fxe4 {[%emt 0:01:18]} Rxf1+ {[%emt 0:03:23]} 26. Rxf1 {[%emt 0:00:02]} Qd8 {[%emt 0:00:40]} 27. d5 {[%emt 0:04:41]} Ka8 {[%emt 0:00:27]} 28. hxg5 {[%emt 0:02:00]} cxd5 {[%emt 0:00:17]} 29. e5 {[%emt 0:01:10]} Rc6 {[%emt 0:01:06]} 30. Qh7 {[%emt 0:03:36]} Qxg5 {[%emt 0:02:01]} 31. Qxf7 {[%emt 0:00:02]} a6 {[%emt 0:00:35]} 32. Qxd5 {[%emt 0:01:03]} Ne7 {[%emt 0:00:31]} 33. Qd8+ {[%emt 0:00:01]} Ka7 {[%emt 0:00:03]} 34. Qd4+ {[%emt 0:00:34]} Rb6 {[%emt 0:00:23]} 35. Be4 {[%emt 0:00:36]} Qg4 {[%emt 0:01:29]} 36. Rf7 {[%emt 0:01:21]} Qh4 {[%emt 0:00:36]} 37. a4 {[%emt 0:00:36]} Qe1+ {[%emt 0:00:30]} 38. Ka2 {[%emt 0:00:43]} Qb4 {[%emt 0:00:28]} 39. Qxb4 {[%emt 0:00:27]} Rxb4 {[%emt 0:00:01]} 40. Bf3 {[%emt 0:01:34]} Ng6 {[%emt 0:00:55]} 41. e6 {[%emt 0:31:25]} a5 {[%emt 0:30:36]} 42. b3 {[%emt 0:03:01]} Rb6 {[%emt 0:00:00]} 43. e7 {[%emt 0:00:00]} Re6 {[%emt 0:00:00]} 44. Rf6 {[%emt 0:00:00]} Rxf6 {[%emt 0:00:00]} 45. e8=Q {[%emt 0:00:00]} Rxf3 {[%emt 0:00:00]} 46. Qxg6 {[%emt 0:00:00]} Rc3 {[%emt 0:00:00]} 47. Qg5 {[%emt 0:00:00]} Rc2+ {[%emt 0:00:00]} 48. Kb1 {[%emt 0:00:00]} 1-0

[Event "WJCC U20 Open 2019"]
[Site "New Delhi"]
[Date "2019.10.15"]
[Round "1.30"]
[White "Doluweera, Minul Sanjula"]
[Black "Raghunandan, Kaumandur Srihari"]
[Result "1/2-1/2"]
[ECO "A41"]
[WhiteElo "2191"]
[BlackElo "2449"]
[Annotator "NA"]
[PlyCount "104"]
[EventDate "2019.10.15"]
[EventType "swiss"]
[EventCountry "IND"]
[SourceTitle "playchess.com"]
[Source "ChessBase"]
[SourceQuality "1"]
[TimeControl "40/5400+30:1800+30"]

1. d4 {[%emt 0:00:00]} d6 {[%emt 0:00:00]} 2. Nf3 {[%emt 0:00:09]} g6 {[%emt 0:00:04]} 3. c4 {[%emt 0:00:10]} Bg7 {[%emt 0:00:20]} 4. Nc3 {[%emt 0:00:06]} Nf6 {[%emt 0:00:07]} 5. e4 {[%emt 0:00:12]} O-O {[%emt 0:00:09]} 6. h3 {[%emt 0:00:07]} e5 {[%emt 0:00:26]} 7. d5 Nh5 {[%emt 0:00:20]} 8. Nh2 {[%emt 0:02:26]} Qe8 {[%emt 0:16:30]} 9. Be2 {[%emt 0:00:32]} Nf4 {[%emt 0:02:01]} 10. Bf3 f5 {[%emt 0:09:35]} 11. g3 {[%emt 0:02:31]} Nxh3 {[%emt 0:17:08]} 12. Bg2 {[%emt 0:00:48]} fxe4 {[%emt 0:01:20]} 13. Be3 {[%emt 0:00:50]} Qe7 {[%emt 0:05:17]} 14. Qd2 {[%emt 0:34:25]} Na6 {[%emt 0:20:53]} 15. Nf1 {[%emt 0:04:50]} Nf4 {[%emt 0:01:58]} 16. gxf4 {[%emt 0:17:16]} exf4 {[%emt 0:00:30]} 17. Bxf4 {[%emt 0:00:31]} Nc5 {[%emt 0:00:24]} 18. Be3 {[%emt 0:00:53]} Nd3+ {[%emt 0:00:21]} 19. Kd1 {[%emt 0:00:22]} Ne5 {[%emt 0:09:51]} 20. Bg5 {[%emt 0:08:54]} Bg4+ {[%emt 0:02:41]} 21. Kc2 {[%emt 0:01:08]} Qe8 {[%emt 0:05:30]} 22. Ne3 {[%emt 0:03:27]} Bf3 {[%emt 0:00:09]} 23. Rag1 {[%emt 0:02:09]} Bxg2 {[%emt 0:00:59]} 24. Rxg2 {[%emt 0:02:39]} Nf3 {[%emt 0:00:12]} 25. Qd1 {[%emt 0:03:11]} Nxg5 {[%emt 0:02:14]} 26. Rxg5 {[%emt 0:00:02]} Rxf2+ {[%emt 0:00:03]} 27. Kb1 {[%emt 0:02:06]} Rf3 {[%emt 0:03:10]} 28. Qe1 {[%emt 0:02:59]} Bd4 {[%emt 0:01:00]} 29. Ncd1 {[%emt 0:00:42]} Bf6 30. Rg3 {[%emt 0:02:25]} Qe5 {[%emt 0:00:41]} 31. Rhh3 {[%emt 0:00:16]} Bh4 {[%emt 0:00:52]} 32. Rxg6+ {[%emt 0:02:42]} hxg6 {[%emt 0:00:02]} 33. Rxh4 {[%emt 0:00:42]} Raf8 {[%emt 0:00:48]} 34. Qh1 {[%emt 0:02:21]} Qd4 {[%emt 0:00:30]} 35. Rg4 {[%emt 0:01:38]} Kg7 {[%emt 0:00:38]} 36. Qg1 {[%emt 0:00:58]} Qd3+ {[%emt 0:00:14]} 37. Ka1 {[%emt 0:00:15]} R8f6 {[%emt 0:00:05]} 38. a3 {[%emt 0:00:19]} b5 {[%emt 0:01:07]} 39. cxb5 {[%emt 0:00:47]} Rf1 {[%emt 0:00:39]} 40. Rxg6+ {[%emt 0:03:20]} Rxg6 {[%emt 0:00:07]} 41. Qxf1 {[%emt 0:30:07]} Qxf1 {[%emt 0:30:39]} 42. Nxf1 {[%emt 0:00:01]} Kf6 {[%emt 0:00:00]} 43. Nfe3 {[%emt 0:00:00]} Ke5 {[%emt 0:00:00]} 44. Kb1 {[%emt 0:00:00]} Kf4 {[%emt 0:00:00]} 45. Kc2 {[%emt 0:00:00]} Rg3 {[%emt 0:00:00]} 46. Nf1 {[%emt 0:00:00]} Rg2+ {[%emt 0:00:00]} 47. Kc3 {[%emt 0:00:00]} Re2 {[%emt 0:00:00]} 48. Kd4 {[%emt 0:00:00]} Kf3 {[%emt 0:00:00]} 49. Nc3 {[%emt 0:00:00]} Rxb2 {[%emt 0:00:00]} 50. Nxe4 {[%emt 0:00:00]} Rxb5 {[%emt 0:00:00]} 51. Nfd2+ {[%emt 0:00:00]} Kf4 {[%emt 0:00:00]} 52. Nc3 {[%emt 0:00:00]} Rb2 {[%emt 0:00:00]} 1/2-1/2

[Event "WJCC U20 Open 2019"]
[Site "New Delhi"]
[Date "2019.10.15"]
[Round "1.31"]
[White "Raja, Harshit"]
[Black "Papadiamandis, Elliot"]
[Result "1/2-1/2"]
[ECO "B99"]
[WhiteElo "2440"]
[BlackElo "2190"]
[Annotator "NA"]
[PlyCount "60"]
[EventDate "2019.10.15"]
[EventType "swiss"]
[EventCountry "IND"]
[SourceTitle "playchess.com"]
[Source "ChessBase"]
[SourceQuality "1"]
[TimeControl "40/5400+30:1800+30"]

1. e4 c5 2. Nf3 d6 3. d4 cxd4 4. Nxd4 Nf6 5. Nc3 a6 6. Bg5 e6 7. f4 Be7 8. Qf3 Qc7 9. O-O-O Nbd7 10. g4 b5 11. Bxf6 Nxf6 12. g5 Nd7 13. f5 Bxg5+ 14. Kb1 Ne5 15. Qh5 Qe7 16. fxe6 g6 17. exf7+ Kxf7 18. Qe2 Bg4 19. Qf2+ Qf6 20. Qxf6+ Bxf6 21. Be2 Bxe2 22. Ncxe2 Rhf8 23. Nf4 Rae8 24. Nd5 Ng4 25. a4 Nf2 26. Rhf1 Nxd1 27. Nxf6 Ne3 28. Rf3 Ke7 29. Nc6+ Ke6 30. Nd4+ Ke7 1/2-1/2

[Event "WJCC U20 Open 2019"]
[Site "New Delhi"]
[Date "2019.10.15"]
[Round "1.32"]
[White "Flores Quillas, Diego Saul Rodri"]
[Black "Murzin, Volodar"]
[Result "1/2-1/2"]
[ECO "B94"]
[WhiteElo "2164"]
[BlackElo "2433"]
[Annotator "NA"]
[PlyCount "68"]
[EventDate "2019.10.15"]
[EventType "swiss"]
[EventCountry "IND"]
[SourceTitle "playchess.com"]
[Source "ChessBase"]
[SourceQuality "1"]
[TimeControl "40/5400+30:1800+30"]

1. e4 {[%emt 0:00:00]} c5 {[%emt 0:00:00]} 2. Nf3 {[%emt 0:00:00]} d6 {[%emt 0:00:00]} 3. d4 {[%emt 0:00:00]} cxd4 {[%emt 0:00:00]} 4. Nxd4 {[%emt 0:00:00]} Nf6 {[%emt 0:00:00]} 5. Nc3 {[%emt 0:00:19]} a6 {[%emt 0:00:13]} 6. Bg5 {[%emt 0:00:25]} Nbd7 {[%emt 0:00:04]} 7. Qe2 {[%emt 0:00:10]} Qc7 {[%emt 0:00:26]} 8. f4 {[%emt 0:04:32]} e5 {[%emt 0:01:36]} 9. Nf5 {[%emt 0:23:15]} h6 {[%emt 0:01:14]} 10. fxe5 {[%emt 0:00:12]} dxe5 {[%emt 0:04:24]} 11. Bd2 {[%emt 0:00:07]} Nc5 {[%emt 0:09:17]} 12. O-O-O {[%emt 0:04:41]} Be6 {[%emt 0:07:59]} 13. Qf3 {[%emt 0:09:21]} O-O-O {[%emt 0:07:50]} 14. Be2 {[%emt 0:08:09]} g6 {[%emt 0:15:35]} 15. Ne3 {[%emt 0:00:15]} Be7 {[%emt 0:00:13]} 16. Ned5 {[%emt 0:13:12]} Bxd5 {[%emt 0:14:58]} 17. exd5 {[%emt 0:00:20]} Kb8 {[%emt 0:01:33]} 18. Be3 {[%emt 0:01:42]} Rd6 {[%emt 0:05:17]} 19. Qg3 {[%emt 0:11:52]} Nfd7 {[%emt 0:15:03]} 20. b4 {[%emt 0:01:58]} Rc8 {[%emt 0:00:46]} 21. bxc5 {[%emt 0:07:28]} Nxc5 {[%emt 0:00:04]} 22. Kb1 {[%emt 0:00:35]} Rb6+ {[%emt 0:08:27]} 23. Ka1 {[%emt 0:02:00]} Nb3+ {[%emt 0:00:58]} 24. cxb3 {[%emt 0:00:08]} Qxc3+ {[%emt 0:00:04]} 25. Kb1 {[%emt 0:00:05]} Qc2+ {[%emt 0:00:13]} 26. Ka1 {[%emt 0:00:09]} Qc3+ {[%emt 0:00:03]} 27. Kb1 {[%emt 0:00:06]} Rxb3+ {[%emt 0:00:42]} 28. axb3 {[%emt 0:00:05]} Qxb3+ {[%emt 0:00:05]} 29. Ka1 {[%emt 0:00:03]} Qa3+ {[%emt 0:00:13]} 30. Kb1 {[%emt 0:00:06]} Qb4+ {[%emt 0:00:07]} 31. Ka1 {[%emt 0:00:12]} Qa4+ {[%emt 0:05:37]} 32. Kb1 {[%emt 0:00:07]} Qb3+ {[%emt 0:01:04]} 33. Ka1 {[%emt 0:00:11]} Qa3+ {[%emt 0:00:57]} 34. Kb1 {[%emt 0:00:03]} Qb3+ {[%emt 0:00:17]} 1/2-1/2

[Event "WJCC U20 Open 2019"]
[Site "New Delhi"]
[Date "2019.10.15"]
[Round "1.40"]
[White "Lama, Milan"]
[Black "Di Benedetto, Edoardo"]
[Result "1/2-1/2"]
[ECO "C01"]
[WhiteElo "1976"]
[BlackElo "2401"]
[Annotator "NA"]
[PlyCount "33"]
[EventDate "2019.10.15"]
[EventType "swiss"]
[EventCountry "IND"]
[SourceTitle "playchess.com"]
[Source "ChessBase"]
[SourceQuality "1"]
[TimeControl "40/5400+30:1800+30"]

1. e4 e6 2. d4 d5 3. exd5 exd5 4. Bd3 Nc6 5. c3 Bd6 6. Nf3 Nge7 7. O-O Bg4 8. Nbd2 Qd7 9. Re1 f6 10. Nf1 O-O-O 11. b4 Rde8 12. a4 g5 13. a5 h5 14. b5 Nd8 15. b6 a6 16. bxc7 Bxc7 17. Ba3 1/2-1/2

[Event "WJCC U20 Open 2019"]
[Site "New Delhi"]
[Date "2019.10.15"]
[Round "1.41"]
[White "Sammed Jaykumar, Shete"]
[Black "Mohd Saprin, Amir Ghaazi"]
[Result "1/2-1/2"]
[ECO "C54"]
[WhiteElo "2392"]
[BlackElo "1942"]
[Annotator "NA"]
[PlyCount "44"]
[EventDate "2019.10.15"]
[EventType "swiss"]
[EventCountry "IND"]
[SourceTitle "playchess.com"]
[Source "ChessBase"]
[SourceQuality "1"]
[TimeControl "40/5400+30:1800+30"]

1. e4 {[%emt 0:00:00]} e5 {[%emt 0:00:00]} 2. Nf3 {[%emt 0:00:00]} Nc6 {[%emt 0:00:00]} 3. Bc4 {[%emt 0:00:00]} Bc5 {[%emt 0:00:11]} 4. c3 {[%emt 0:00:00]} Nf6 {[%emt 0:00:15]} 5. d3 {[%emt 0:00:04]} d6 {[%emt 0:00:25]} 6. h3 {[%emt 0:00:29]} a6 {[%emt 0:00:50]} 7. a4 {[%emt 0:00:13]} Ba7 {[%emt 0:00:27]} 8. Nbd2 {[%emt 0:01:31]} Ne7 {[%emt 0:01:25]} 9. Nf1 {[%emt 0:01:57]} Ng6 {[%emt 0:01:27]} 10. Ng3 {[%emt 0:03:26]} O-O {[%emt 0:03:38]} 11. O-O {[%emt 0:00:30]} h6 {[%emt 0:05:02]} 12. Bb3 {[%emt 0:00:35]} Re8 {[%emt 0:02:52]} 13. Re1 {[%emt 0:00:54]} Be6 {[%emt 0:08:15]} 14. Bc2 {[%emt 0:03:47]} d5 {[%emt 0:07:34]} 15. exd5 {[%emt 0:11:12]} Bxd5 {[%emt 0:02:02]} 16. a5 {[%emt 0:00:59]} Qd7 {[%emt 0:04:14]} 17. Be3 {[%emt 0:07:40]} Bxe3 {[%emt 0:04:39]} 18. fxe3 {[%emt 0:02:23]} Rad8 {[%emt 0:04:30]} 19. e4 {[%emt 0:07:22]} Be6 {[%emt 0:00:33]} 20. Kh2 {[%emt 0:00:00]} Bd5 {[%emt 0:00:27]} 21. Kg1 {[%emt 0:01:00]} Be6 {[%emt 0:00:33]} 22. Kh2 {[%emt 0:03:04]} c6 {[%emt 0:03:09]} 1/2-1/2

[Event "WJCC U20 Open 2019"]
[Site "New Delhi"]
[Date "2019.10.15"]
[Round "1.43"]
[White "Amartuvshin, Ganzorig"]
[Black "Hamad, Essam"]
[Result "1/2-1/2"]
[ECO "E25"]
[WhiteElo "2391"]
[BlackElo "1849"]
[Annotator "NA"]
[PlyCount "41"]
[EventDate "2019.10.15"]
[EventType "swiss"]
[EventCountry "IND"]
[SourceTitle "playchess.com"]
[Source "ChessBase"]
[SourceQuality "1"]
[TimeControl "40/5400+30:1800+30"]

1. d4 {[%emt 0:00:00]} Nf6 {[%emt 0:00:00]} 2. c4 {[%emt 0:00:00]} e6 {[%emt 0:00:00]} 3. Nc3 {[%emt 0:00:00]} Bb4 {[%emt 0:00:00]} 4. f3 {[%emt 0:00:07]} d5 {[%emt 0:00:00]} 5. a3 {[%emt 0:00:21]} Bxc3+ {[%emt 0:00:03]} 6. bxc3 {[%emt 0:00:07]} c5 {[%emt 0:00:03]} 7. cxd5 {[%emt 0:00:47]} exd5 {[%emt 0:00:07]} 8. e3 {[%emt 0:00:12]} O-O {[%emt 0:04:42]} 9. Bd3 {[%emt 0:00:10]} Nc6 {[%emt 0:03:58]} 10. Ne2 {[%emt 0:00:12]} c4 {[%emt 0:01:17]} 11. Bc2 {[%emt 0:00:13]} Re8 {[%emt 0:01:31]} 12. O-O {[%emt 0:00:47]} b5 {[%emt 0:01:09]} 13. Ng3 {[%emt 0:02:53]} h5 {[%emt 0:01:39]} 14. e4 {[%emt 0:03:39]} h4 {[%emt 0:01:52]} 15. Nh1 {[%emt 0:00:23]} h3 {[%emt 0:10:51]} 16. e5 {[%emt 0:10:45]} hxg2 {[%emt 0:05:55]} 17. Kxg2 {[%emt 0:00:10]} Nh5 {[%emt 0:01:27]} 18. f4 {[%emt 0:01:42]} Qh4 {[%emt 0:00:27]} 19. f5 {[%emt 0:00:20]} Rb8 {[%emt 0:19:44]} 20. Ng3 {[%emt 0:00:47]} g6 {[%emt 0:07:33]} 21. Qf3 1/2-1/2

[Event "WJCC U20 Open 2019"]
[Site "New Delhi"]
[Date "2019.10.15"]
[Round "1.44"]
[White "Davis, Holden"]
[Black "Anuj, Shrivatri"]
[Result "0-1"]
[ECO "C50"]
[WhiteElo "1817"]
[BlackElo "2390"]
[Annotator "NA"]
[PlyCount "52"]
[EventDate "2019.10.15"]
[EventType "swiss"]
[EventCountry "IND"]
[SourceTitle "playchess.com"]
[Source "ChessBase"]
[SourceQuality "1"]
[TimeControl "40/5400+30:1800+30"]

1. e4 {[%emt 0:00:00]} e5 {[%emt 0:00:00]} 2. Nf3 {[%emt 0:00:27]} Nc6 {[%emt 0:00:00]} 3. Bc4 {[%emt 0:00:59]} Nf6 {[%emt 0:00:00]} 4. d3 {[%emt 0:00:57]} Bc5 {[%emt 0:00:05]} 5. O-O {[%emt 0:00:51]} d6 6. h3 {[%emt 0:03:09]} a6 {[%emt 0:00:17]} 7. a4 {[%emt 0:01:19]} Ba7 {[%emt 0:00:21]} 8. c3 {[%emt 0:02:44]} h6 {[%emt 0:01:27]} 9. Re1 {[%emt 0:03:50]} g5 {[%emt 0:00:37]} 10. Be3 {[%emt 0:10:07]} Bxe3 {[%emt 0:00:30]} 11. Rxe3 {[%emt 0:00:18]} g4 {[%emt 0:00:29]} 12. hxg4 {[%emt 0:05:39]} Nxg4 {[%emt 0:01:50]} 13. Re1 {[%emt 0:03:55]} h5 {[%emt 0:01:35]} 14. d4 {[%emt 0:21:07]} Qf6 {[%emt 0:02:13]} 15. Qe2 {[%emt 0:08:41]} Ne7 {[%emt 0:11:10]} 16. Qd2 {[%emt 0:05:57]} Rg8 {[%emt 0:02:36]} 17. Rd1 {[%emt 0:00:00]} Nc6 {[%emt 0:00:00]} 18. Re1 {[%emt 0:01:00]} Ne7 {[%emt 0:01:00]} 19. Rd1 {[%emt 0:03:46]} Nc6 {[%emt 0:00:37]} 20. b4 {[%emt 0:02:27]} h4 {[%emt 0:11:03]} 21. Qe2 {[%emt 0:08:57]} Nh6 {[%emt 0:05:13]} 22. Qe3 {[%emt 0:08:22]} Bh3 {[%emt 0:02:34]} 23. Ne1 {[%emt 0:01:57]} Bxg2 {[%emt 0:05:10]} 24. Nxg2 {[%emt 0:00:09]} Ng4 {[%emt 0:00:05]} 25. Qe2 {[%emt 0:03:29]} h3 {[%emt 0:00:34]} 26. Nd2 {[%emt 0:01:31]} Nxf2 {[%emt 0:01:37]} 0-1

[Event "WJCC U20 Open 2019"]
[Site "New Delhi"]
[Date "2019.10.15"]
[Round "1.45"]
[White "Dobrovoljc, Vid"]
[Black "Swarnavo, Choudhury"]
[Result "1-0"]
[ECO "B47"]
[WhiteElo "2389"]
[BlackElo "1797"]
[Annotator "NA"]
[PlyCount "75"]
[EventDate "2019.10.15"]
[EventType "swiss"]
[EventCountry "IND"]
[SourceTitle "playchess.com"]
[Source "ChessBase"]
[SourceQuality "1"]
[TimeControl "40/5400+30:1800+30"]

1. e4 {[%emt 0:00:00]} c5 {[%emt 0:00:11]} 2. Nf3 {[%emt 0:00:27]} e6 {[%emt 0:00:35]} 3. d4 {[%emt 0:00:35]} cxd4 {[%emt 0:00:26]} 4. Nxd4 {[%emt 0:00:07]} Nc6 {[%emt 0:00:34]} 5. Nc3 {[%emt 0:00:19]} Qc7 {[%emt 0:00:39]} 6. f4 {[%emt 0:01:16]} a6 {[%emt 0:03:23]} 7. Nxc6 {[%emt 0:02:30]} bxc6 {[%emt 0:02:57]} 8. Bd3 {[%emt 0:00:10]} d5 {[%emt 0:05:09]} 9. O-O {[%emt 0:04:01]} Nf6 {[%emt 0:16:09]} 10. Qe2 {[%emt 0:04:25]} Bc5+ {[%emt 0:08:57]} 11. Kh1 {[%emt 0:07:57]} h5 {[%emt 0:08:12]} 12. Be3 {[%emt 0:09:18]} d4 {[%emt 0:08:37]} 13. Bg1 {[%emt 0:04:16]} Qa5 {[%emt 0:18:00]} 14. Nb1 {[%emt 0:05:58]} Rb8 {[%emt 0:01:26]} 15. Nd2 {[%emt 0:00:18]} Qb6 {[%emt 0:08:03]} 16. Nb3 {[%emt 0:05:34]} a5 {[%emt 0:00:14]} 17. c3 {[%emt 0:02:54]} Be7 {[%emt 0:13:30]} 18. cxd4 {[%emt 0:00:32]} a4 {[%emt 0:00:45]} 19. Nd2 {[%emt 0:00:08]} Qa7 {[%emt 0:01:05]} 20. Nc4 {[%emt 0:01:50]} c5 {[%emt 0:00:30]} 21. Rac1 {[%emt 0:10:08]} cxd4 {[%emt 0:00:35]} 22. Ne5 {[%emt 0:00:09]} Bd7 {[%emt 0:00:28]} 23. Rc4 {[%emt 0:07:09]} Bc5 {[%emt 0:00:33]} 24. Rfc1 {[%emt 0:02:02]} Bb6 {[%emt 0:00:31]} 25. Qd1 {[%emt 0:04:15]} a3 {[%emt 0:00:25]} 26. Nxd7 {[%emt 0:04:42]} Qxd7 {[%emt 0:00:23]} 27. bxa3 {[%emt 0:01:34]} O-O {[%emt 0:00:30]} 28. a4 {[%emt 0:02:56]} Rfd8 {[%emt 0:00:21]} 29. h3 {[%emt 0:05:08]} Ra8 {[%emt 0:00:48]} 30. Rc6 {[%emt 0:01:38]} Qa7 {[%emt 0:00:10]} 31. Rb1 {[%emt 0:04:10]} Rab8 {[%emt 0:00:45]} 32. Bh2 {[%emt 0:02:06]} Re8 {[%emt 0:00:27]} 33. Rb5 {[%emt 0:00:46]} Bc7 {[%emt 0:00:23]} 34. Qc2 {[%emt 0:03:32]} Rxb5 {[%emt 0:00:46]} 35. axb5 {[%emt 0:00:08]} Bb6 {[%emt 0:00:06]} 36. Rc8 {[%emt 0:03:21]} g6 {[%emt 0:00:53]} 37. e5 {[%emt 0:01:13]} Nd5 {[%emt 0:00:09]} 38. Rxe8+ {[%emt 0:00:08]} 1-0